[Event "DVM U14w 2019"]
[Site "Neumuenster"]
[Date "2019.12.28"]
[Round "4"]
[White "Becker, Linda"]
[Black "Werner, Rosalie"]
[Result "1-0"]
[ECO "C01"]
[WhiteElo "1617"]
[BlackElo "1674"]
[Annotator "NA"]
[PlyCount "67"]
[EventDate "2019.12.27"]
[EventType "team-tourn"]
[EventRounds "7"]
[EventCountry "GER"]
[SourceTitle "playchess.com"]
[Source "ChessBase"]
[SourceQuality "1"]
[WhiteTeam "SG Porz"]
[BlackTeam "VSG 1880 Offenbach"]
[WhiteTeamCountry "GER"]
[BlackTeamCountry "GER"]
[TimeControl "40/5400+30:1800+30"]

1. e4 {[%emt 0:00:00]} e6 {[%emt 0:00:00]} 2. d4 {[%emt 0:00:00]} d5 {[%emt 0:00:00]} 3. exd5 {[%emt 0:00:00]} exd5 {[%emt 0:00:00]} 4. c4 {[%emt 0:00:00]} Nf6 {[%emt 0:00:00]} 5. Nf3 {[%emt 0:00:00]} Be7 {[%emt 0:00:06]} 6. Bd3 {[%emt 0:00:24]} dxc4 {[%emt 0:01:02]} 7. Bxc4 {[%emt 0:00:11]} Bg4 {[%emt 0:00:29]} 8. Bxf7+ {[%emt 0:01:09]} Kf8 {[%emt 0:03:15]} 9. Bb3 {[%emt 0:01:00]} Nc6 {[%emt 0:02:32]} 10. Be3 {[%emt 0:05:37]} Bb4+ {[%emt 0:05:09]} 11. Nc3 {[%emt 0:01:28]} Nd5 {[%emt 0:05:56]} 12. Rc1 {[%emt 0:01:10]} Nxe3 {[%emt 0:04:26]} 13. fxe3 {[%emt 0:00:10]} Qe7 {[%emt 0:01:17]} 14. Qe2 {[%emt 0:01:15]} Bxc3+ {[%emt 0:08:09]} 15. bxc3 {[%emt 0:00:35]} g6 {[%emt 0:01:06]} 16. O-O {[%emt 0:01:52]} Kg7 {[%emt 0:01:11]} 17. h3 {[%emt 0:04:17]} Bf5 {[%emt 0:06:00]} 18. Nd2 {[%emt 0:02:11]} Rhf8 {[%emt 0:01:26]} 19. e4 {[%emt 0:02:20]} Bd7 {[%emt 0:00:56]} 20. Rce1 {[%emt 0:05:58]} a5 {[%emt 0:02:43]} 21. Qc4 {[%emt 0:03:46]} b5 {[%emt 0:02:29]} 22. Qe2 {[%emt 0:03:01]} b4 {[%emt 0:02:14]} 23. Qe3 {[%emt 0:04:03]} a4 {[%emt 0:06:56]} 24. Rxf8 {[%emt 0:01:13]} Kxf8 {[%emt 0:08:48]} 25. Rf1+ {[%emt 0:02:34]} Ke8 {[%emt 0:04:13]} 26. Rf7 {[%emt 0:03:01]} Qh4 {[%emt 0:03:16]} 27. Bd5 {[%emt 0:07:29]} b3 {[%emt 0:08:39]} 28. a3 {[%emt 0:11:11]} Rb8 {[%emt 0:02:39]} 29. Qf3 {[%emt 0:14:28]} Qh6 {[%emt 0:02:20]} 30. Bxc6 {[%emt 0:01:14]} Bxc6 {[%emt 0:08:22]} 31. Qf6 {[%emt 0:00:21]} Qg5 {[%emt 0:00:11]} 32. Re7+ {[%emt 0:00:57]} Kd8 {[%emt 0:00:25]} 33. Qf8+ {[%emt 0:00:10]} Be8 {[%emt 0:00:07]} 34. Qxe8# {[%emt 0:00:06] normal} 1-0

[Event "DVM U14w 2019"]
[Site "Neumuenster"]
[Date "2019.12.28"]
[Round "4"]
[White "Sinner, Joselyne"]
[Black "Dixon Quiroz, Laura Michaela"]
[Result "1/2-1/2"]
[ECO "C48"]
[WhiteElo "1407"]
[BlackElo "1310"]
[Annotator "NA"]
[PlyCount "59"]
[EventDate "2019.12.27"]
[EventType "team-tourn"]
[EventRounds "7"]
[EventCountry "GER"]
[SourceTitle "playchess.com"]
[Source "ChessBase"]
[SourceQuality "1"]
[WhiteTeam "SG Porz"]
[BlackTeam "VSG 1880 Offenbach"]
[WhiteTeamCountry "GER"]
[BlackTeamCountry "GER"]
[TimeControl "40/5400+30:1800+30"]

1. e4 {[%emt 0:00:00]} e5 {[%emt 0:00:00]} 2. Nf3 {[%emt 0:00:00]} Nc6 {[%emt 0:00:00]} 3. Nc3 {[%emt 0:00:00]} Nf6 {[%emt 0:00:05]} 4. Bb5 {[%emt 0:00:00]} d6 {[%emt 0:00:16]} 5. d4 {[%emt 0:00:17]} exd4 {[%emt 0:00:21]} 6. Nxd4 {[%emt 0:00:05]} Bd7 {[%emt 0:00:17]} 7. O-O {[%emt 0:01:41]} g6 {[%emt 0:01:46]} 8. Be3 {[%emt 0:06:04]} Bg7 {[%emt 0:00:24]} 9. h3 {[%emt 0:02:30]} O-O {[%emt 0:00:45]} 10. Nxc6 {[%emt 0:03:12]} bxc6 {[%emt 0:00:17]} 11. Bd3 {[%emt 0:06:43]} Be6 {[%emt 0:02:41]} 12. Be2 {[%emt 0:11:54]} Nd7 {[%emt 0:03:58]} 13. Qd2 {[%emt 0:05:33]} Qe7 {[%emt 0:06:11]} 14. f4 {[%emt 0:07:19]} f5 {[%emt 0:01:06]} 15. Bd4 {[%emt 0:12:42]} c5 {[%emt 0:10:24]} 16. Bxg7 {[%emt 0:02:27]} Qxg7 {[%emt 0:00:28]} 17. exf5 {[%emt 0:20:31]} Rxf5 {[%emt 0:04:22]} 18. Bg4 {[%emt 0:02:44]} Rf6 {[%emt 0:02:54]} 19. Ne4 {[%emt 0:01:36]} Bxg4 {[%emt 0:00:54]} 20. Nxf6+ {[%emt 0:00:46]} Nxf6 {[%emt 0:00:28]} 21. hxg4 {[%emt 0:00:13]} Rb8 {[%emt 0:01:28]} 22. g5 {[%emt 0:01:32]} Nd7 {[%emt 0:01:09]} 23. b3 {[%emt 0:01:17]} Rf8 {[%emt 0:05:41]} 24. Rad1 {[%emt 0:01:52]} Nb6 {[%emt 0:02:03]} 25. c4 {[%emt 0:01:31]} h6 {[%emt 0:02:32]} 26. gxh6 {[%emt 0:00:58]} Qxh6 {[%emt 0:00:07]} 27. Rf3 {[%emt 0:01:06]} Rf5 {[%emt 0:01:35]} 28. Qe3 {[%emt 0:01:08]} Qf8 {[%emt 0:01:09]} 29. Rg3 {[%emt 0:01:17]} Kg7 {[%emt 0:00:57]} 30. Qc3+ {normal} 1/2-1/2

[Event "DVM U14w 2019"]
[Site "Neumuenster"]
[Date "2019.12.28"]
[Round "4"]
[White "Berghold, Lotta"]
[Black "Glowiak, Alexandra"]
[Result "1/2-1/2"]
[ECO "D05"]
[WhiteElo "1398"]
[BlackElo "1403"]
[Annotator "NA"]
[PlyCount "41"]
[EventDate "2019.12.27"]
[EventType "team-tourn"]
[EventRounds "7"]
[EventCountry "GER"]
[SourceTitle "playchess.com"]
[Source "ChessBase"]
[SourceQuality "1"]
[WhiteTeam "SC Borussia Lichtenberg"]
[BlackTeam "SV Traktor Priestewitz"]
[WhiteTeamCountry "GER"]
[TimeControl "40/5400+30:1800+30"]

1. d4 {[%emt 0:00:00]} d5 {[%emt 0:00:00]} 2. Nf3 {[%emt 0:01:27]} Nf6 {[%emt 0:00:00]} 3. e3 {[%emt 0:00:04]} e6 {[%emt 0:00:00]} 4. Bd3 {[%emt 0:00:03]} Bd6 {[%emt 0:00:40]} 5. O-O {[%emt 0:00:11]} O-O {[%emt 0:00:27]} 6. Nbd2 {[%emt 0:00:04]} c5 {[%emt 0:01:26]} 7. c3 {[%emt 0:00:10]} Nc6 {[%emt 0:00:48]} 8. dxc5 Bxc5 {[%emt 0:00:14]} 9. e4 {[%emt 0:00:48]} dxe4 {[%emt 0:03:07]} 10. Nxe4 {[%emt 0:00:08]} Nxe4 {[%emt 0:04:25]} 11. Bxe4 {[%emt 0:00:13]} Qc7 {[%emt 0:01:58]} 12. Qe2 {[%emt 0:07:37]} Rd8 {[%emt 0:05:07]} 13. Be3 {[%emt 0:04:32]} Bxe3 {[%emt 0:01:06]} 14. Qxe3 {[%emt 0:01:46]} f6 {[%emt 0:05:38]} 15. Rad1 {[%emt 0:04:05]} Ne7 {[%emt 0:09:53]} 16. Rd2 {[%emt 0:05:23]} Rxd2 {[%emt 0:02:55]} 17. Qxd2 {[%emt 0:00:09]} e5 {[%emt 0:01:07]} 18. h3 {[%emt 0:07:12]} Be6 {[%emt 0:01:49]} 19. a3 {[%emt 0:02:56]} Rd8 {[%emt 0:02:09]} 20. Qc1 {[%emt 0:01:29]} Qd7 {[%emt 0:10:02]} 21. Bc2 {[%emt 0:03:07] normal} 1/2-1/2

[Event "DVM U14w 2019"]
[Site "Neumuenster"]
[Date "2019.12.28"]
[Round "4"]
[White "Reiter, Hannah"]
[Black "Muhina, Liana"]
[Result "0-1"]
[ECO "B01"]
[WhiteElo "1373"]
[BlackElo "1272"]
[Annotator "NA"]
[PlyCount "44"]
[EventDate "2019.12.27"]
[EventType "team-tourn"]
[EventRounds "7"]
[EventCountry "GER"]
[SourceTitle "playchess.com"]
[Source "ChessBase"]
[SourceQuality "1"]
[WhiteTeam "Karlsruher SF"]
[BlackTeam "SC Garching"]
[WhiteTeamCountry "GER"]
[TimeControl "40/5400+30:1800+30"]

1. e4 {[%emt 0:00:00]} d5 {[%emt 0:00:00]} 2. exd5 {[%emt 0:00:00]} Qxd5 {[%emt 0:00:00]} 3. Nc3 {[%emt 0:00:00]} Qa5 {[%emt 0:00:00]} 4. Nf3 {[%emt 0:00:18]} Nf6 {[%emt 0:00:01]} 5. d4 {[%emt 0:00:07]} Bg4 {[%emt 0:00:07]} 6. Be2 {[%emt 0:00:44]} e6 {[%emt 0:00:16]} 7. Bd2 {[%emt 0:00:23]} c6 {[%emt 0:00:21]} 8. O-O {[%emt 0:00:30]} Bd6 {[%emt 0:00:14]} 9. Ne4 {[%emt 0:01:14]} Qc7 {[%emt 0:00:47]} 10. Nxf6+ {[%emt 0:00:22]} gxf6 {[%emt 0:00:20]} 11. Bh6 {[%emt 0:01:21]} Rg8 {[%emt 0:04:11]} 12. Bc4 {[%emt 0:04:18]} Bh3 {[%emt 0:03:42]} 13. Nh4 {[%emt 0:02:17]} Bxh2+ {[%emt 0:07:16]} 14. Kh1 {[%emt 0:01:42]} Rg4 {[%emt 0:04:26]} 15. gxh3 {[%emt 0:03:32]} Rxh4 {[%emt 0:00:28]} 16. Bg7 {[%emt 0:00:30]} Rxh3 {[%emt 0:01:19]} 17. Kg2 {[%emt 0:01:16]} Rh4 {[%emt 0:02:24]} 18. Qe2 {[%emt 0:02:05]} Nd7 {[%emt 0:05:05]} 19. Bxe6 {[%emt 0:01:12]} O-O-O {[%emt 0:00:28]} 20. Bxf6 {[%emt 0:00:16]} Rg8+ {[%emt 0:00:14]} 21. Kh1 {[%emt 0:00:46]} Bg1+ {[%emt 0:00:59]} 22. Bxh4 {[%emt 0:02:49]} Qh2# {normal} 0-1

[Event "DVM U14w 2019"]
[Site "Neumuenster"]
[Date "2019.12.28"]
[Round "4"]
[White "Kluehs, Isabel"]
[Black "Moradi, Yassaman"]
[Result "1-0"]
[ECO "D05"]
[WhiteElo "1363"]
[BlackElo "1293"]
[Annotator "NA"]
[PlyCount "119"]
[EventDate "2019.12.27"]
[EventType "team-tourn"]
[EventRounds "7"]
[EventCountry "GER"]
[SourceTitle "playchess.com"]
[Source "ChessBase"]
[SourceQuality "1"]
[WhiteTeam "SC Borussia Lichtenberg"]
[BlackTeam "SV Traktor Priestewitz"]
[WhiteTeamCountry "GER"]
[TimeControl "40/5400+30:1800+30"]

1. d4 {[%emt 0:00:00]} d5 {[%emt 0:00:00]} 2. Nf3 {[%emt 0:00:00]} e6 {[%emt 0:00:00]} 3. e3 {[%emt 0:00:00]} c5 {[%emt 0:00:00]} 4. c3 {[%emt 0:00:00]} Nf6 {[%emt 0:00:00]} 5. Bd3 {[%emt 0:00:00]} c4 {[%emt 0:00:02]} 6. Bc2 {[%emt 0:00:00]} Nc6 {[%emt 0:00:39]} 7. Nbd2 {[%emt 0:00:12]} Be7 {[%emt 0:00:12]} 8. O-O {[%emt 0:00:07]} O-O {[%emt 0:00:11]} 9. e4 {[%emt 0:00:18]} Qc7 {[%emt 0:00:31]} 10. e5 {[%emt 0:02:42]} Nd7 {[%emt 0:02:05]} 11. Re1 {[%emt 0:00:33]} f6 {[%emt 0:02:40]} 12. exf6 {[%emt 0:00:58]} Nxf6 {[%emt 0:00:30]} 13. Nf1 {[%emt 0:00:17]} Bd7 {[%emt 0:01:26]} 14. Ng3 {[%emt 0:00:20]} Bd6 {[%emt 0:02:01]} 15. Qe2 {[%emt 0:03:00]} Rae8 {[%emt 0:02:44]} 16. Bg5 {[%emt 0:01:28]} Ne7 {[%emt 0:07:21]} 17. Bxf6 {[%emt 0:01:31]} Rxf6 {[%emt 0:00:27]} 18. Ng5 {[%emt 0:03:24]} Ng6 {[%emt 0:00:47]} 19. Qh5 {[%emt 0:03:12]} h6 {[%emt 0:08:53]} 20. Bxg6 {[%emt 0:02:06]} Rc8 {[%emt 0:12:15]} 21. Bf7+ {[%emt 0:01:38]} Kh8 {[%emt 0:01:43]} 22. Bxe6 {[%emt 0:02:54]} Bxe6 {[%emt 0:02:08]} 23. Nxe6 {[%emt 0:00:52]} Qd7 {[%emt 0:02:30]} 24. Ng5 {[%emt 0:10:12]} Rcf8 {[%emt 0:01:18]} 25. Nh3 {[%emt 0:00:44]} Bxg3 {[%emt 0:01:45]} 26. hxg3 {[%emt 0:00:11]} Rf5 {[%emt 0:04:08]} 27. Qe2 {[%emt 0:01:19]} Qf7 {[%emt 0:00:54]} 28. Rf1 {[%emt 0:01:18]} Re8 {[%emt 0:00:27]} 29. Qc2 {[%emt 0:00:20]} b5 {[%emt 0:03:13]} 30. Rae1 {[%emt 0:01:26]} Rf8 {[%emt 0:00:16]} 31. Qe2 {[%emt 0:01:44]} Rf6 {[%emt 0:00:57]} 32. Qe7 {[%emt 0:02:06]} Qxe7 {[%emt 0:01:01]} 33. Rxe7 {[%emt 0:00:13]} a5 {[%emt 0:00:09]} 34. a3 {[%emt 0:00:47]} a4 {[%emt 0:00:12]} 35. Re5 {[%emt 0:00:29]} Rd6 {[%emt 0:00:11]} 36. Rfe1 {[%emt 0:00:18]} Rdd8 {[%emt 0:00:26]} 37. Nf4 {[%emt 0:00:23]} Kh7 {[%emt 0:00:26]} 38. Ne6 {[%emt 0:00:26]} Rb8 {[%emt 0:00:28]} 39. Nxf8+ {[%emt 0:00:11]} Rxf8 {[%emt 0:00:06]} 40. Rxd5 {[%emt 0:00:05]} g5 {[%emt 0:00:55]} 41. Rxb5 {[%emt 0:30:10]} Kg6 {[%emt 0:30:05]} 42. g4 {[%emt 0:00:30]} Rf6 {[%emt 0:00:45]} 43. Rbe5 {[%emt 0:00:11]} Kg7 {[%emt 0:01:00]} 44. Re7+ {[%emt 0:00:15]} Kg8 {[%emt 0:00:18]} 45. Ra7 {[%emt 0:00:09]} Rf7 {[%emt 0:01:01]} 46. Ree7 {[%emt 0:00:36]} Rf4 {[%emt 0:00:37]} 47. Re8+ {[%emt 0:00:14]} Rf8 {[%emt 0:00:06]} 48. Rxf8+ {[%emt 0:00:04]} Kxf8 {[%emt 0:00:07]} 49. f3 {[%emt 0:00:10]} Ke8 {[%emt 0:00:07]} 50. Kf2 {[%emt 0:00:04]} Kd8 {[%emt 0:00:08]} 51. Ke3 {[%emt 0:00:04]} Ke8 {[%emt 0:00:06]} 52. Ke4 {[%emt 0:00:06]} Kd8 {[%emt 0:00:23]} 53. Kd5 {[%emt 0:00:04]} Ke8 {[%emt 0:00:09]} 54. Kd6 {[%emt 0:00:14]} Kf8 {[%emt 0:00:09]} 55. Ke6 {[%emt 0:00:03]} Kg8 {[%emt 0:00:07]} 56. Kf6 {[%emt 0:00:04]} h5 {[%emt 0:00:29]} 57. gxh5 {[%emt 0:00:27]} g4 {[%emt 0:00:27]} 58. fxg4 {[%emt 0:00:07]} Kh8 {[%emt 0:00:10]} 59. Kg6 {[%emt 0:00:03]} Kg8 {[%emt 0:00:02]} 60. Ra8# {normal} 1-0

[Event "DVM U14w 2019"]
[Site "Neumuenster"]
[Date "2019.12.28"]
[Round "4"]
[White "Alferova, Emily"]
[Black "Schulz, Hannah"]
[Result "0-1"]
[ECO "B13"]
[WhiteElo "1352"]
[BlackElo "1588"]
[Annotator "NA"]
[PlyCount "94"]
[EventDate "2019.12.27"]
[EventType "team-tourn"]
[EventRounds "7"]
[EventCountry "GER"]
[SourceTitle "playchess.com"]
[Source "ChessBase"]
[SourceQuality "1"]
[WhiteTeam "SC Garching"]
[BlackTeam "Karlsruher SF"]
[BlackTeamCountry "GER"]
[TimeControl "40/5400+30:1800+30"]

1. e4 {[%emt 0:00:00]} c6 {[%emt 0:00:00]} 2. d4 {[%emt 0:00:00]} d5 {[%emt 0:00:00]} 3. exd5 {[%emt 0:00:00]} cxd5 {[%emt 0:00:04]} 4. Bd3 {[%emt 0:00:00]} Nc6 {[%emt 0:00:09]} 5. c3 {[%emt 0:00:00]} g6 {[%emt 0:00:07]} 6. Bf4 {[%emt 0:01:47]} Nf6 {[%emt 0:00:16]} 7. Nd2 {[%emt 0:00:46]} Bg7 {[%emt 0:00:12]} 8. Ngf3 {[%emt 0:00:36]} O-O {[%emt 0:00:51]} 9. h3 {[%emt 0:00:33]} a5 {[%emt 0:04:56]} 10. O-O {[%emt 0:01:18]} Bf5 {[%emt 0:00:19]} 11. Qc2 {[%emt 0:07:16]} Qd7 {[%emt 0:01:56]} 12. Bxf5 {[%emt 0:05:37]} gxf5 {[%emt 0:00:22]} 13. Be5 {[%emt 0:04:40]} Ne4 {[%emt 0:01:31]} 14. Bxg7 {[%emt 0:03:46]} Kxg7 {[%emt 0:00:17]} 15. Nxe4 {[%emt 0:01:26]} fxe4 {[%emt 0:00:08]} 16. Nh2 {[%emt 0:01:08]} Kh8 {[%emt 0:00:20]} 17. Rae1 {[%emt 0:02:21]} Rg8 {[%emt 0:00:47]} 18. Re3 {[%emt 0:01:43]} Rg7 {[%emt 0:01:00]} 19. f4 {[%emt 0:03:24]} Rag8 {[%emt 0:02:56]} 20. Ng4 {[%emt 0:02:53]} f5 {[%emt 0:01:05]} 21. Ne5 {[%emt 0:02:20]} Rxg2+ {[%emt 0:01:13]} 22. Qxg2 {[%emt 0:00:41]} Rxg2+ {[%emt 0:00:04]} 23. Kxg2 {[%emt 0:00:56]} Nxe5 {[%emt 0:00:35]} 24. fxe5 {[%emt 0:00:06]} e6 {[%emt 0:00:17]} 25. Rg3 {[%emt 0:01:59]} Qf7 {[%emt 0:02:32]} 26. Rf4 {[%emt 0:03:04]} Qh5 {[%emt 0:00:52]} 27. b3 {[%emt 0:06:29]} Qe2+ {[%emt 0:02:07]} 28. Rf2 {[%emt 0:00:09]} Qe1 {[%emt 0:00:41]} 29. Rf1 {[%emt 0:01:18]} Qd2+ {[%emt 0:00:47]} 30. Rf2 {[%emt 0:00:18]} Qc1 {[%emt 0:00:50]} 31. Rf1 {[%emt 0:00:11]} Qa3 {[%emt 0:01:22]} 32. Rf2 {[%emt 0:00:34]} b5 {[%emt 0:00:57]} 33. Kh2 {[%emt 0:08:51]} Qf8 {[%emt 0:01:14]} 34. Kg1 {[%emt 0:22:09]} f4 {[%emt 0:01:17]} 35. Kf1 {[%emt 0:01:35]} f3 {[%emt 0:01:39]} 36. Kg1 {[%emt 0:02:20]} Qa3 {[%emt 0:01:05]} 37. Rc2 {[%emt 0:01:10]} Qf8 {[%emt 0:01:27]} 38. Rf2 {[%emt 0:00:23]} Qf4 {[%emt 0:00:19]} 39. Kh2 {[%emt 0:01:45]} Qc1 {[%emt 0:00:48]} 40. Rg1 {[%emt 0:05:49]} Qxc3 {[%emt 0:00:32]} 41. Rd1 {[%emt 0:30:41]} Qe3 {[%emt 0:30:40]} 42. Kg3 {[%emt 0:02:32]} Qg5+ {[%emt 0:00:19]} 43. Kh2 {[%emt 0:00:09]} Qf4+ {[%emt 0:00:17]} 44. Kh1 {[%emt 0:00:48]} e3 {[%emt 0:00:28]} 45. Rc2 {[%emt 0:00:08]} f2 {[%emt 0:01:35]} 46. Rc8+ {[%emt 0:00:45]} Kg7 {[%emt 0:00:08]} 47. Rc7+ {[%emt 0:00:12]} Kg6 {[%emt 0:00:06] normal} 0-1

[Event "DVM U14w 2019"]
[Site "Neumuenster"]
[Date "2019.12.28"]
[Round "4"]
[White "Frowein, Katja"]
[Black "Kuran, Olivia"]
[Result "1-0"]
[ECO "C44"]
[WhiteElo "1271"]
[BlackElo "1003"]
[Annotator "NA"]
[PlyCount "83"]
[EventDate "2019.12.27"]
[EventType "team-tourn"]
[EventRounds "7"]
[EventCountry "GER"]
[SourceTitle "playchess.com"]
[Source "ChessBase"]
[SourceQuality "1"]
[WhiteTeam "SC Garching"]
[BlackTeam "Karlsruher SF"]
[TimeControl "40/5400+30:1800+30"]

1. e4 {[%emt 0:00:00]} e5 {[%emt 0:00:00]} 2. Nf3 {[%emt 0:00:00]} Nc6 {[%emt 0:00:00]} 3. d4 {[%emt 0:00:00]} d6 {[%emt 0:01:00]} 4. dxe5 {[%emt 0:00:00]} dxe5 {[%emt 0:00:41]} 5. Qxd8+ {[%emt 0:00:00]} Nxd8 {[%emt 0:00:08]} 6. Nxe5 {[%emt 0:00:05]} Nf6 {[%emt 0:01:21]} 7. f3 {[%emt 0:02:38]} Bd6 {[%emt 0:02:19]} 8. Bf4 {[%emt 0:04:07]} Nc6 {[%emt 0:03:35]} 9. Bb5 {[%emt 0:03:37]} Bd7 {[%emt 0:02:18]} 10. Nxd7 {[%emt 0:02:14]} Nxd7 {[%emt 0:01:11]} 11. Bxd6 {[%emt 0:00:33]} cxd6 {[%emt 0:00:14]} 12. Nc3 {[%emt 0:01:08]} Rd8 {[%emt 0:01:52]} 13. O-O-O {[%emt 0:01:28]} O-O {[%emt 0:00:17]} 14. Rxd6 {[%emt 0:01:14]} Ndb8 {[%emt 0:02:35]} 15. Rhd1 {[%emt 0:01:46]} a6 {[%emt 0:01:22]} 16. Bxc6 {[%emt 0:00:40]} Rxd6 {[%emt 0:01:39]} 17. Rxd6 {[%emt 0:00:55]} Nxc6 {[%emt 0:00:29]} 18. h4 {[%emt 0:01:59]} Rd8 {[%emt 0:01:22]} 19. Rxd8+ {[%emt 0:00:21]} Nxd8 {[%emt 0:00:05]} 20. Nd5 {[%emt 0:00:17]} Nc6 {[%emt 0:00:57]} 21. Kd2 {[%emt 0:00:35]} f6 {[%emt 0:00:35]} 22. Kc3 {[%emt 0:00:51]} Kf8 {[%emt 0:00:32]} 23. a4 {[%emt 0:00:33]} Ke8 {[%emt 0:00:55]} 24. b4 {[%emt 0:00:36]} b5 {[%emt 0:00:34]} 25. axb5 {[%emt 0:00:16]} axb5 {[%emt 0:00:09]} 26. Nc7+ {[%emt 0:00:09]} Kd7 {[%emt 0:00:31]} 27. Nxb5 {[%emt 0:00:10]} Kc8 {[%emt 0:00:30]} 28. Nd4 {[%emt 0:00:21]} Nxd4 {[%emt 0:00:48]} 29. Kxd4 {[%emt 0:00:08]} Kc7 {[%emt 0:00:07]} 30. Kc5 {[%emt 0:00:11]} h5 {[%emt 0:00:29]} 31. b5 {[%emt 0:00:08]} Kb7 {[%emt 0:00:19]} 32. b6 {[%emt 0:00:05]} g6 {[%emt 0:00:08]} 33. g3 {[%emt 0:00:26]} Kb8 {[%emt 0:00:26]} 34. Kc6 {[%emt 0:00:14]} Kc8 {[%emt 0:00:13]} 35. Kd6 {[%emt 0:00:23]} Kb7 {[%emt 0:00:14]} 36. Ke6 {[%emt 0:00:11]} Kxb6 {[%emt 0:00:05]} 37. Kxf6 {[%emt 0:00:16]} Kc5 {[%emt 0:00:33]} 38. Kxg6 {[%emt 0:00:16]} Kd4 {[%emt 0:00:06]} 39. f4 {[%emt 0:00:25]} Kxe4 {[%emt 0:00:08]} 40. f5 {[%emt 0:00:14]} Kf3 {[%emt 0:00:27]} 41. f6 {[%emt 0:30:09]} Kxg3 {[%emt 0:30:06]} 42. Kxh5 {[%emt 0:00:08] normal} 1-0

[Event "DVM U14w 2019"]
[Site "Neumuenster"]
[Date "2019.12.28"]
[Round "4"]
[White "Moradi, Yakta"]
[Black "Hafermann, Lara"]
[Result "1/2-1/2"]
[ECO "B00"]
[WhiteElo "1257"]
[BlackElo "1161"]
[Annotator "NA"]
[PlyCount "134"]
[EventDate "2019.12.27"]
[EventType "team-tourn"]
[EventRounds "7"]
[EventCountry "GER"]
[SourceTitle "playchess.com"]
[Source "ChessBase"]
[SourceQuality "1"]
[WhiteTeam "SV Traktor Priestewitz"]
[BlackTeam "SC Borussia Lichtenberg"]
[TimeControl "40/5400+30:1800+30"]

1. e4 {[%emt 0:00:00]} b6 {[%emt 0:00:00]} 2. Nc3 {[%emt 0:00:00]} Bb7 {[%emt 0:00:00]} 3. Bc4 {[%emt 0:00:16]} e6 {[%emt 0:00:00]} 4. d3 {[%emt 0:00:24]} Nf6 {[%emt 0:00:48]} 5. Bf4 {[%emt 0:00:25]} d5 {[%emt 0:01:14]} 6. Bb3 {[%emt 0:01:15]} Bd6 {[%emt 0:01:06]} 7. e5 {[%emt 0:00:14]} d4 {[%emt 0:01:24]} 8. Nce2 {[%emt 0:02:21]} Bxe5 {[%emt 0:00:32]} 9. Bxe5 {[%emt 0:00:07]} Bxg2 {[%emt 0:00:13]} 10. f3 {[%emt 0:00:41]} Bxh1 {[%emt 0:00:08]} 11. Ng3 {[%emt 0:00:07]} Nbd7 {[%emt 0:01:32]} 12. Bxd4 {[%emt 0:00:20]} Bxf3 {[%emt 0:02:47]} 13. Nxf3 {[%emt 0:00:05]} O-O {[%emt 0:01:41]} 14. Qe2 {[%emt 0:00:18]} c5 {[%emt 0:01:28]} 15. Bg1 {[%emt 0:01:46]} Qc7 {[%emt 0:03:41]} 16. O-O-O {[%emt 0:00:12]} Rac8 {[%emt 0:01:26]} 17. Nd2 {[%emt 0:02:23]} Rfd8 {[%emt 0:03:59]} 18. a3 {[%emt 0:00:43]} b5 {[%emt 0:01:27]} 19. Bf2 {[%emt 0:06:43]} Nb6 {[%emt 0:03:04]} 20. h4 {[%emt 0:03:46]} a5 {[%emt 0:02:33]} 21. h5 {[%emt 0:02:45]} h6 {[%emt 0:02:08]} 22. Ngf1 {[%emt 0:01:41]} a4 {[%emt 0:01:56]} 23. Ba2 {[%emt 0:01:27]} b4 {[%emt 0:01:15]} 24. axb4 {[%emt 0:00:35]} cxb4 {[%emt 0:00:08]} 25. Nc4 {[%emt 0:01:08]} Nxc4 {[%emt 0:00:24]} 26. Bxc4 {[%emt 0:00:35]} a3 {[%emt 0:01:12]} 27. Bg3 {[%emt 0:00:07]} axb2+ {[%emt 0:01:23]} 28. Kxb2 {[%emt 0:00:14]} Qc5 {[%emt 0:00:52]} 29. Bf2 {[%emt 0:01:32]} Qa5 {[%emt 0:01:31]} 30. Ra1 {[%emt 0:00:11]} Qxh5 {[%emt 0:01:45]} 31. Qxh5 {[%emt 0:00:06]} Nxh5 {[%emt 0:00:09]} 32. Kb3 {[%emt 0:01:29]} Ra8 {[%emt 0:07:49]} 33. Re1 {[%emt 0:02:06]} Nf6 {[%emt 0:07:52]} 34. Kxb4 {[%emt 0:00:35]} Nd5+ {[%emt 0:00:10]} 35. Bxd5 {[%emt 0:00:35]} Rxd5 {[%emt 0:00:19]} 36. Kc3 {[%emt 0:00:21]} Rc8+ {[%emt 0:01:47]} 37. Kd2 {[%emt 0:00:11]} Rf5 {[%emt 0:00:18]} 38. Be3 {[%emt 0:00:26]} g5 {[%emt 0:00:59]} 39. Ng3 {[%emt 0:00:13]} Rb5 {[%emt 0:01:12]} 40. Rc1 {[%emt 0:00:39]} f5 {[%emt 0:01:18]} 41. Bd4 {[%emt 0:31:59]} f4 {[%emt 0:30:52]} 42. Ne4 {[%emt 0:00:20]} Rd5 {[%emt 0:00:51]} 43. Nf6+ {[%emt 0:00:09]} Kf7 {[%emt 0:00:17]} 44. Nxd5 {[%emt 0:00:05]} exd5 {[%emt 0:00:05]} 45. Rh1 {[%emt 0:00:10]} Kg6 {[%emt 0:00:07]} 46. c3 {[%emt 0:00:30]} Re8 {[%emt 0:00:48]} 47. c4 {[%emt 0:00:48]} dxc4 {[%emt 0:00:50]} 48. dxc4 {[%emt 0:00:07]} f3 {[%emt 0:01:25]} 49. c5 {[%emt 0:01:58]} g4 {[%emt 0:00:57]} 50. c6 {[%emt 0:01:46]} Rc8 {[%emt 0:00:25]} 51. Be3 {[%emt 0:00:20]} h5 {[%emt 0:00:29]} 52. Ke1 {[%emt 0:01:31]} Rxc6 {[%emt 0:00:35]} 53. Kf2 {[%emt 0:00:08]} Rc2+ {[%emt 0:01:12]} 54. Kg3 {[%emt 0:00:13]} Rg2+ {[%emt 0:00:10]} 55. Kf4 {[%emt 0:00:03]} Re2 {[%emt 0:01:08]} 56. Rf1 {[%emt 0:01:10]} Ra2 {[%emt 0:05:33]} 57. Kg3 {[%emt 0:00:25]} Rg2+ {[%emt 0:05:59]} 58. Kf4 {[%emt 0:00:15]} h4 {[%emt 0:00:17]} 59. Rg1 {[%emt 0:00:49]} h3 {[%emt 0:00:47]} 60. Rh1 {[%emt 0:00:51]} Kh5 {[%emt 0:00:25]} 61. Bd4 {[%emt 0:01:03]} h2 {[%emt 0:02:39]} 62. Bg1 {[%emt 0:01:10]} Kg6 {[%emt 0:03:49]} 63. Bxh2 {[%emt 0:01:18]} f2 {[%emt 0:00:57]} 64. Rf1 {[%emt 0:01:02]} Rxh2 {[%emt 0:01:25]} 65. Kxg4 {[%emt 0:00:04]} Rh7 {[%emt 0:01:12]} 66. Rxf2 {[%emt 0:00:08]} Rf7 {[%emt 0:00:13]} 67. Rxf7 {[%emt 0:00:08]} Kxf7 {normal} 1/2-1/2